fUSD/lending_fUSD_20260308
["ID","MTS","AMOUNT","RATE_DAILY","PERIOD"]
[407967911,1772947843136,-1500.0,0.00015768,2]
[407967912,1772947843145,-1910.88,0.00015825,2]
[407967913,1772947843154,-1315.63,0.00015894,2]
[407967914,1772947843163,-288.86800319,0.00015951,2]
[407967915,1772947843172,-4255.23466,0.0001596,2]
[407967916,1772947843181,-383.55764632,0.00016,2]
[407967917,1772947843191,-500.0,0.00016023,2]
[407967918,1772947843200,-150.82,0.00016053,2]
[407967919,1772947843210,-166.66,0.0001606,2]
[407967920,1772947843219,-9999.99,0.00016116,2]
[407967921,1772947843229,-1315.63,0.00016168,2]
[407967922,1772947843240,-500.0,0.00016297,2]
[407967923,1772947843249,-550.62611789,0.00016316,2]
[407967924,1772947843259,-500.0,0.00016352,2]
[407967925,1772947843269,-500.0,0.00016352,2]
[407967926,1772947843279,-500.0,0.00016352,2]
[407967927,1772947843289,-500.0,0.00016352,2]
[407967928,1772947843299,-500.0,0.00016352,2]
[407967929,1772947843311,-500.0,0.00016352,2]
[407967930,1772947843323,-500.0,0.00016352,2]
[407967931,1772947843334,-500.0,0.00016352,2]
[407967932,1772947843345,-500.0,0.00016352,2]
[407967933,1772947843355,-500.0,0.00016352,2]
[407967934,1772947843365,-500.0,0.00016352,2]
[407967935,1772947843374,-500.0,0.00016352,2]
[407967936,1772947843385,-500.0,0.00016352,2]
[407967937,1772947843397,-248.83,0.00016425,2]
[407967938,1772947843406,-1315.63,0.00016442,2]
[407967939,1772947843415,-150.82,0.00016463,2]
[407967940,1772947843425,-166.66,0.00016543,2]
[407967941,1772947843435,-1910.88,0.00016544,2]
[407967942,1772947843445,-528.15946451,0.00016571,2]
[407967943,1772947843455,-166.63,0.00016712,2]
[407967944,1772947843464,-1315.63,0.00016716,2]
[407967945,1772947843473,-296.14,0.00016717,2]
[407967946,1772947843482,-433.0,0.00016816,2]
[407967947,1772947843492,-150.82,0.00016874,2]
[407967948,1772947843501,-1315.63,0.0001699,2]
[407967949,1772947843510,-505.0,0.00017,2]
[407967950,1772947843520,-504.0,0.00017,2]
[407967951,1772947843529,-503.0,0.00017,2]
[407967953,1772947843539,-166.66,0.00017025,2]
[407967955,1772947843548,-2351.0,0.0001724,2]
[407967956,1772947843558,-1910.88,0.00017264,2]
[407967957,1772947843567,-1315.63,0.00017264,2]
[407967958,1772947843576,-150.82,0.00017284,2]
[407967959,1772947843586,-1315.63,0.00017538,2]
[407967961,1772947843596,-150.82,0.00017695,2]
[407967963,1772947843606,-1520.16,0.00017695,2]
[407967964,1772947843617,-800.0,0.00017808,2]
[407967965,1772947843628,-151.0,0.00017808,2]
[407967966,1772947843640,-1315.63,0.00017812,2]
[407967967,1772947843649,-1315.73249175,0.00018086,2]
[407967968,1772947843660,-150.82,0.00018105,2]
[407967969,1772947843669,-736.0,0.00018133,2]
[407967970,1772947843678,-500.85016995,0.00018205,2]
[407967971,1772947843687,-168.0,0.00018279,2]
[407967972,1772947843696,-151.0,0.00018351,2]
[407967973,1772947843706,-25813.24949322,0.00018354,2]
[407967974,1772947843718,-1832.57,0.00018356,2]
[407967975,1772947843728,-250.0,0.00018499,2]
[407967976,1772947843736,-150.82,0.00018516,2]
[407967977,1772947843746,-1600.0,0.00018904,2]
[407967978,1772947843756,-150.82,0.00018926,2]
[407967980,1772947843766,-3292.0,0.00018964,2]
[407967982,1772947843775,-292.97,0.00019178,30]
[407967984,1772947843784,-150.82,0.00019337,2]
[407967986,1772947843794,-5085.41448601,0.00019397,2]
[407967988,1772947843803,-168.0,0.00019433,2]
[407967989,1772947843812,-1252.0,0.00019537,2]
[407967990,1772947843821,-336.96121467,0.000197,2]
[407967991,1772947843830,-150.82,0.00019747,2]
[407967992,1772947843840,-150.0,0.000198,14]
[407967993,1772947843849,-2000.0,0.000198,2]
[407967994,1772947843859,-483.76,0.00019887,2]
[407967995,1772947843868,-2000.0,0.000199,2]
[407967996,1772947843877,-1520.16,0.00019907,2]
[407967997,1772947843886,-168.0,0.00019934,2]
[407967998,1772947843895,-171.9281,0.0002,2]
[407967999,1772947843904,-171.9281,0.0002,2]
[407968000,1772947843913,-171.9281,0.0002,2]
[407968001,1772947843923,-171.9281,0.0002,2]
[407968002,1772947843932,-171.9281,0.0002,2]
[407968003,1772947843942,-171.9281,0.0002,2]
[407968004,1772947843951,-150.0,0.0002,7]
[407968005,1772947843963,-500.0,0.0002,2]
[407968006,1772947843974,-800.97696343,0.0002,2]
[407968007,1772947843983,-150.82,0.00020158,2]
[407968008,1772947843995,-300.19,0.00020161,2]
[407968009,1772947844003,-500.86016718,0.00020548,2]
[407968010,1772947844013,-150.82,0.00020568,2]
[407968011,1772947844023,-1000.0,0.00020569,2]
[407968012,1772947844033,-1002.24583529,0.00020569,2]
[407968013,1772947844042,-280.88915702,0.00020649,2]
[407968014,1772947844051,-3168.0,0.0002086,2]
[407968015,1772947844060,-150.82,0.00020979,2]
[407968016,1772947844069,-634.548664,0.0002101,2]
[407968017,1772947844079,-2129.0,0.00021071,2]
[407968018,1772947844087,-150.82,0.00021389,2]
[407968019,1772947844100,-849.597787,0.00021604,7]
[407968020,1772947844110,-163.908,0.00021685,2]
[407968021,1772947844119,-150.85,0.000218,2]
[407968022,1772947844128,-5000.0,0.00021918,2]
[407968023,1772947844138,-607.78015044,0.00021937,2]
[407968024,1772947844147,-292.97,0.00022114,30]
[407968025,1772947844157,-1520.16,0.00022118,2]
[407968026,1772947844166,-25813.24949322,0.00022235,2]
[407968027,1772947844175,-424.0,0.00022707,2]
[407968028,1772947844185,-282.89,0.00023207,2]
[407968029,1772947844195,-479.65,0.00023207,2]
[407968030,1772947844205,-505.0,0.000233,7]
[407968031,1772947844215,-367.09527631,0.00023548,2]
[407968032,1772947844225,-1520.16,0.0002433,2]
[407968033,1772947844234,-505.60048264,0.00024424,2]
[407968034,1772947844244,-6000.0,0.00024463,7]
[407968035,1772947844253,-150.0,0.00024658,2]
[407968036,1772947844475,-500.0,0.00024899,2]
[407968037,1772947844485,-500.0,0.00024899,2]
[407968038,1772947844494,-500.0,0.00024899,2]
[407968039,1772947844503,-500.0,0.00024899,2]
[407968040,1772947844512,-500.0,0.00024899,2]
[407968041,1772947844521,-500.0,0.00024899,2]
[407968042,1772947844531,-500.0,0.00024899,2]
[407968043,1772947844540,-500.0,0.00024899,2]
[407968044,1772947844549,-500.0,0.00024899,2]
[407968045,1772947844559,-500.0,0.00024899,2]
[407968046,1772947844568,-500.0,0.00024899,2]
[407968047,1772947844577,-500.0,0.00024899,2]
[407968048,1772947844586,-500.0,0.00024899,2]
[407968049,1772947844595,-500.0,0.00024899,2]
[407968050,1772947844604,-514.75306544,0.00024899,2]
[407968051,1772947844613,-500.0,0.00024899,2]
[407968052,1772947844622,-500.0,0.00024899,2]
[407968053,1772947844631,-500.0,0.00024899,2]
[407968054,1772947844640,-500.0,0.00024899,2]
[407968055,1772947844649,-500.0,0.00024899,2]
[407968056,1772947844658,-500.0,0.00024899,2]
[407968057,1772947844667,-500.0,0.00024899,2]
[407968058,1772947844676,-500.0,0.00024899,2]
[407968059,1772947844685,-500.0,0.00024899,2]
[407968060,1772947844694,-500.0,0.00024899,2]
[407968061,1772947844703,-500.0,0.00024899,2]
[407968062,1772947844712,-500.0,0.00024899,2]
[407968063,1772947844721,-500.0,0.00024899,2]
[407968064,1772947844730,-500.0,0.00024899,2]
[407968065,1772947844739,-500.0,0.00024899,2]
[407968066,1772947844748,-500.0,0.00024899,2]
[407968067,1772947844757,-500.0,0.00024899,2]
[407968068,1772947844767,-500.0,0.00024899,2]
[407968069,1772947844776,-151.0,0.000249,2]
[407968070,1772947844786,-151.0,0.000249,2]
[407968071,1772947844795,-151.0,0.000249,2]
[407968072,1772947844804,-151.0,0.000249,2]
[407968073,1772947844813,-327.294994,0.000249,2]
[407968074,1772947844822,-327.294994,0.000249,2]
[407968075,1772947844831,-327.294994,0.000249,2]
[407968076,1772947844840,-327.294994,0.000249,2]
[407968077,1772947844850,-292.97,0.00025049,30]
[407968078,1772947844859,-150.0,0.0002589,2]
[407968079,1772947844869,-283.08707263,0.00026105,2]
[407968080,1772947844878,-25813.24949322,0.00026115,2]
[407968081,1772947844887,-1520.16,0.00026542,120]
[407968082,1772947844896,-500.0,0.00026679,2]
[407968083,1772947844907,-513.917388,0.00026679,2]
[407968084,1772947844917,-248.83,0.00026749,2]
[407968085,1772947844926,-634.548664,0.00026888,2]
[407968086,1772947844935,-1398.562,0.00026936,2]
[407968087,1772947844950,-172.82949155,0.00027,3]
[407968088,1772947844968,-3008.0,0.00027173,2]
[407968089,1772947844977,-2401.0,0.00027173,2]
[407968090,1772947844987,-150.0,0.00027185,2]
[407968091,1772947845001,-355.61,0.000272,14]
[407968092,1772947845011,-15265.36,0.00027397,10]
[407968093,1772947845020,-160.04,0.000274,7]
[407968094,1772947845031,-267.5,0.000274,7]
[407968095,1772947845040,-155.0,0.0002788,2]
[407968096,1772947845049,-296.14,0.00027893,2]
[407968097,1772947845059,-292.97,0.00027984,30]
[407968098,1772947845068,-6000.0,0.00028463,7]
[407968099,1772947845078,-172.82949155,0.000285,7]
[407968100,1772947845087,-150.0,0.00028544,2]
[407968101,1772947845096,-607.78015044,0.00028803,2]
[407968102,1772947845106,-1982.394837,0.00028806,30]
[407968103,1772947845116,-500.0,0.00028822,2]
[407968104,1772947845125,-178.7193,0.0002915,2]
[407968105,1772947845135,-178.7193,0.00029152,2]
[407968106,1772947845144,-209.3202,0.00029176,2]
[407968107,1772947845153,-209.3202,0.00029182,2]
[407968108,1772947845163,-1126.45877504,0.00029186,5]
[407968109,1772947845172,-1130.62296673,0.00029186,5]
[407968110,1772947845181,-1119.44792589,0.00029186,5]
[407968111,1772947845190,-1460.20162787,0.00029186,5]
[407968112,1772947845201,-505.0,0.000296,13]
[407968113,1772947845210,-1279.0,0.00029813,2]
[407968114,1772947845220,-1212.0,0.00029813,2]
[407968115,1772947845229,-928.516,0.00029813,2]
[407968116,1772947845238,-2460.0,0.00029813,2]
[407968117,1772947845248,-6036.963,0.00029813,2]
[407968118,1772947845258,-150.0,0.00029971,2]
[407968119,1772947845267,-25813.24949322,0.00029996,2]
[407968120,1772947845277,-292.97,0.0003092,30]
[407968121,1772947845286,-150.0,0.0003147,2]
[407968122,1772947845295,-680.0,0.00031535,30]
[407968123,1772947845306,-452.33384016,0.00032237,2]
[407968124,1772947845315,-6043.26409524,0.00032436,2]
[407968125,1772947845324,-1069.03711819,0.00032436,2]
[407968126,1772947845334,-810.8135854,0.00032436,2]
[407968127,1772947845343,-4500.0,0.00032463,7]
[407968128,1772947845353,-634.548664,0.00032766,2]
[407968129,1772947845363,-2460.0,0.00032813,2]
[407968130,1772947845372,-5992.0,0.00032813,2]
[407968131,1772947845381,-614.85396196,0.00032979,4]
[407968132,1772947845390,-150.0,0.00033043,2]
[407968133,1772947845400,-500.0,0.00033326,120]
[407968134,1772947845409,-292.97,0.00033855,30]
[407968135,1772947845419,-25813.24949322,0.00033877,2]
[407968136,1772947845428,-151.0,0.00034122,14]
[407968137,1772947845437,-151.0,0.00034125,7]
[407968138,1772947845446,-151.0,0.00034125,7]
[407968139,1772947845456,-151.0,0.00034125,7]
[407968140,1772947845465,-296.34,0.000343,30]
[407968141,1772947845475,-151.347837,0.00034464,7]
[407968142,1772947845484,-248.83,0.00034648,2]
[407968143,1772947845493,-150.0,0.00034696,2]
[407968144,1772947845503,-1500.0,0.00034795,2]
[407968145,1772947845512,-180.0,0.00035,120]
[407968146,1772947845521,-2000.0,0.000351,2]
[407968147,1772947845531,-1000.0,0.00035267,2]
[407968148,1772947845540,-6000.0,0.00035463,7]
[407968149,1772947845550,-607.78015044,0.00035668,2]
[407968150,1772947845559,-2460.0,0.00035813,2]
[407968151,1772947845569,-5992.0,0.00035813,2]
[407968152,1772947845579,-505.0,0.000359,19]
[407968153,1772947845588,-296.14,0.00036353,2]
[407968154,1772947845597,-150.0,0.0003643,2]
[407968155,1772947845607,-292.97,0.00036791,30]
[407968156,1772947845615,-882.97770763,0.000372,120]
[407968157,1772947845625,-882.97770763,0.000372,120]
[407968158,1772947845634,-882.97770763,0.000372,120]
[407968159,1772947845643,-160.04,0.000375,14]
[407968160,1772947845652,-25813.24949322,0.00037758,2]
[407968161,1772947845661,-500.0,0.00037808,2]
[407968162,1772947845670,-500.0,0.00038033,120]
[407968163,1772947845679,-500.0,0.00038033,30]
[407968164,1772947845688,-500.0,0.00038033,120]
[407968165,1772947845697,-500.0,0.00038033,120]
[407968166,1772947845706,-500.0,0.00038033,120]
[407968167,1772947845715,-500.0,0.00038033,120]
[407968168,1772947845724,-484.25426362,0.00038033,120]
[407968169,1772947845733,-500.0,0.00038033,30]
[407968170,1772947845742,-226.32,0.00038034,30]
[407968171,1772947845751,-383.72,0.00038034,30]
[407968172,1772947845760,-150.0,0.00038252,2]
[407968173,1772947845769,-4500.0,0.00038463,7]
[407968174,1772947845779,-634.548664,0.00038644,2]
[407968175,1772947845787,-1000.0,0.000388,2]
[407968176,1772947845797,-2460.0,0.00038813,2]
[407968177,1772947845806,-1904.537,0.00038869,53]
[407968178,1772947845815,-156.90322644,0.00038971,72]
[407968179,1772947845824,-292.97,0.00039726,30]
[407968180,1772947845833,-150.0,0.00040165,2]
[407968181,1772947845842,-155.0,0.00040271,120]
[407968182,1772947845851,-882.97770763,0.00040628,120]
[407968183,1772947845860,-181.0,0.00041,120]
[407968184,1772947845870,-25813.24949322,0.00041638,15]
[407968185,1772947845879,-1142.57012186,0.00041781,7]
[407968186,1772947845888,-2460.0,0.00041813,2]
[407968187,1772947845897,-633.0,0.00041902,2]
[407968188,1772947845906,-150.0,0.00041902,2]
[407968189,1772947845915,-150.0,0.00041902,2]
[407968190,1772947845924,-150.0,0.00041902,2]
[407968191,1772947845933,-276.0,0.00041902,2]
[407968192,1772947845942,-150.0,0.00042173,120]
[407968193,1772947845955,-500.0,0.00042181,120]
[407968194,1772947845964,-505.0,0.000422,25]
[407968195,1772947845974,-3079.32,0.00042363,30]
[407968196,1772947845983,-6000.0,0.00042463,7]
[407968197,1772947845993,-151.0,0.00042463,7]
[407968198,1772947846002,-151.0,0.00042463,7]
[407968199,1772947846011,-151.0,0.00042463,7]
[407968200,1772947846022,-151.0,0.00042463,7]
[407968201,1772947846031,-185.117156,0.00042463,60]
[407968202,1772947846040,-151.0,0.00042463,120]
[407968203,1772947846049,-1000.0,0.000425,2]
[407968206,1772947846058,-607.78015044,0.00042534,2]
[407968208,1772947846067,-169.74,0.00042546,120]
[407968210,1772947846076,-287.79,0.00042546,120]
[407968212,1772947846085,-1000.0,0.00042553,7]
[407968214,1772947846093,-1000.0,0.00042553,7]
[407968216,1772947846102,-292.97,0.00042661,120]
[407968218,1772947846112,-4000.0,0.0004274,14]
[407968219,1772947846121,-3079.32,0.0004278,30]
[407968220,1772947846131,-160.0,0.00043,120]
[407968221,1772947846140,-1449.56826202,0.00043014,30]
[407968222,1772947846149,-200.08131,0.00043056,92]
[407968223,1772947846157,-250.0,0.00043068,120]
[407968224,1772947846166,-250.0,0.00043068,120]
[407968225,1772947846175,-289.87,0.00043124,2]
[407968226,1772947846184,-3079.32,0.00043198,30]
[407968227,1772947846193,-152.0,0.00043379,3]
[407968228,1772947846202,-165.89,0.00043385,14]
[407968229,1772947846211,-626.0,0.00043452,2]
[407968230,1772947846220,-150.0,0.00043452,2]
[407968231,1772947846230,-150.0,0.00043452,2]
[407968232,1772947846239,-176.0,0.00043452,2]
[407968233,1772947846248,-160.04,0.000437,14]
[407968234,1772947846257,-1979.57,0.00043794,30]
[407968235,1772947846266,-715.44270042,0.00043808,120]
[407968236,1772947846275,-220.0233,0.00043959,2]
[407968237,1772947846284,-165.89,0.00044224,14]
[407968238,1772947846293,-150.0,0.00044281,120]
[407968239,1772947846302,-634.548664,0.00044522,16]
[407968240,1772947846311,-471.62,0.00044648,2]
[407968241,1772947846320,-1979.56,0.00044749,30]
[407968242,1772947846330,-2443.959,0.00044813,2]
[407968243,1772947846339,-165.88091834,0.00045063,14]
[407968244,1772947846348,-500.0,0.00045178,2]
[407968245,1772947846357,-210.0,0.00045358,7]
[407968246,1772947846366,-25813.24949322,0.00045519,15]
[407968247,1772947846375,-289.87,0.0004552,2]
[407968248,1772947846384,-151.0,0.00045581,120]
[407968249,1772947846393,-151.0,0.00045581,120]
[407968250,1772947846402,-151.0,0.00045581,120]
[407968251,1772947846411,-292.97,0.00045597,120]
[407968252,1772947846421,-197.42,0.00045699,14]
[407968253,1772947846430,-150.0,0.00045902,120]
[407968254,1772947846439,-153.955216,0.00045926,120]
[407968255,1772947846448,-216.37960323,0.00046163,18]
[407968256,1772947846459,-216.37960316,0.00046163,18]
[407968257,1772947846469,-216.37960316,0.00046163,18]
[407968258,1772947846479,-296.39769017,0.00046388,30]
[407968259,1772947846490,-197.42,0.00046584,14]
[407968261,1772947846499,-150.0,0.00047036,7]
[407968262,1772947846510,-264.37845679,0.00047075,30]
[407968263,1772947846520,-327.294994,0.00047141,120]
[407968264,1772947846529,-327.294994,0.00047141,120]
[407968265,1772947846539,-327.294994,0.00047141,120]
[407968266,1772947846548,-327.294994,0.00047141,120]
[407968267,1772947846558,-5800.0,0.00047142,14]
[407968268,1772947846567,-5800.0,0.0004715,14]
[407968269,1772947846576,-5800.0,0.00047159,14]
[407968270,1772947846585,-150.24988052,0.00047163,2]
[407968271,1772947846595,-5800.0,0.00047167,14]
[407968272,1772947846605,-172.96383299,0.00047175,120]
[407968273,1772947846615,-172.96383299,0.00047175,120]
[407968274,1772947846625,-1240.0,0.00047175,120]
[407968275,1772947846634,-13779.0,0.00047175,120]
[407968276,1772947846644,-200.0,0.00047175,120]
[407968277,1772947846652,-160.04,0.000472,14]
[407968278,1772947846661,-197.41917506,0.0004747,14]
[407968280,1772947846671,-500.0,0.0004747,120]
[407968281,1772947846679,-500.0,0.0004747,120]
[407968282,1772947846692,-500.0,0.0004747,120]
[407968283,1772947846703,-500.0,0.0004747,120]
[407968284,1772947846715,-500.0,0.0004747,120]
[407968285,1772947846727,-500.0,0.0004747,120]
[407968286,1772947846740,-500.0,0.0004747,120]
[407968287,1772947846752,-500.0,0.0004747,120]
[407968288,1772947846765,-500.0,0.0004747,120]
[407968289,1772947846777,-500.0,0.0004747,120]
[407968290,1772947846789,-500.0,0.0004747,120]
[407968291,1772947846801,-500.0,0.0004747,120]
[407968292,1772947846811,-500.0,0.0004747,120]
[407968293,1772947846821,-500.0,0.0004747,120]
[407968294,1772947846831,-500.0,0.0004747,120]
[407968295,1772947846840,-500.0,0.0004747,120]
[407968296,1772947846851,-500.0,0.0004747,120]
[407968297,1772947846862,-500.0,0.0004747,120]
[407968298,1772947846873,-500.0,0.0004747,120]
[407968299,1772947846883,-500.0,0.0004747,120]
[407968300,1772947846894,-500.0,0.0004747,120]
[407968301,1772947846904,-500.0,0.0004747,120]
[407968302,1772947846916,-500.0,0.0004747,120]
[407968303,1772947846927,-500.0,0.0004747,120]
[407968304,1772947846940,-500.0,0.0004747,120]
[407968305,1772947846954,-500.0,0.0004747,120]
[407968306,1772947846965,-500.0,0.0004747,120]
[407968307,1772947846977,-500.0,0.0004747,120]
[407968308,1772947846990,-500.0,0.0004747,120]
[407968309,1772947847002,-500.0,0.0004747,120]
[407968310,1772947847012,-500.0,0.0004747,120]
[407968311,1772947847023,-500.0,0.0004747,120]
[407968312,1772947847033,-500.0,0.0004747,120]
[407968313,1772947847042,-500.0,0.0004747,120]
[407968314,1772947847052,-500.0,0.0004747,120]
[407968315,1772947847062,-500.0,0.0004747,120]
[407968316,1772947847073,-500.0,0.0004747,120]
[407968317,1772947847085,-500.0,0.0004747,120]
[407968318,1772947847096,-500.0,0.0004747,120]
[407968319,1772947847108,-500.0,0.0004747,120]
[407968320,1772947847119,-500.0,0.0004747,120]
[407968321,1772947847129,-500.0,0.0004747,120]
[407968322,1772947847140,-500.0,0.0004747,120]
[407968323,1772947847151,-500.0,0.0004747,120]
[407968324,1772947847161,-500.0,0.0004747,120]
[407968325,1772947847172,-500.0,0.0004747,120]
[407968326,1772947847182,-500.0,0.0004747,120]
[407968327,1772947847192,-500.0,0.0004747,120]
[407968328,1772947847203,-500.0,0.0004747,120]
[407968329,1772947847214,-500.0,0.0004747,120]
[407968330,1772947847225,-500.0,0.0004747,120]
[407968331,1772947847236,-500.0,0.0004747,120]
[407968332,1772947847247,-500.0,0.0004747,120]
[407968333,1772947847258,-500.0,0.0004747,120]
[407968334,1772947847268,-500.0,0.0004747,120]
[407968335,1772947847277,-500.0,0.0004747,120]
[407968336,1772947847288,-500.0,0.0004747,120]
[407968337,1772947847298,-500.0,0.0004747,120]
[407968338,1772947847310,-500.0,0.0004747,120]
[407968339,1772947847320,-500.0,0.0004747,120]
[407968340,1772947847330,-500.0,0.0004747,120]
[407968341,1772947847340,-500.0,0.0004747,120]
[407968342,1772947847350,-500.0,0.0004747,120]
[407968343,1772947847361,-500.0,0.0004747,120]
[407968344,1772947847371,-500.0,0.0004747,120]
[407968345,1772947847382,-500.0,0.0004747,120]
[407968346,1772947847392,-500.0,0.0004747,120]
[407968347,1772947847402,-500.0,0.0004747,120]
[407968348,1772947847412,-500.0,0.0004747,120]
[407968349,1772947847422,-500.0,0.0004747,120]
[407968350,1772947847432,-500.0,0.0004747,120]
[407968351,1772947847442,-500.0,0.0004747,120]
[407968352,1772947847452,-500.0,0.0004747,120]
[407968353,1772947847462,-500.0,0.0004747,120]
[407968354,1772947847473,-500.0,0.0004747,120]
[407968355,1772947847485,-500.0,0.0004747,120]
[407968356,1772947847496,-500.0,0.0004747,120]
[407968357,1772947847507,-500.0,0.0004747,120]
[407968358,1772947847517,-500.0,0.0004747,120]
[407968359,1772947847526,-500.0,0.0004747,120]
[407968360,1772947847537,-500.0,0.0004747,120]
[407968361,1772947847547,-500.0,0.0004747,120]
[407968362,1772947847557,-500.0,0.0004747,120]
[407968363,1772947847567,-500.0,0.0004747,120]
[407968364,1772947847577,-500.0,0.0004747,120]
[407968365,1772947847586,-500.0,0.0004747,120]
[407968366,1772947847596,-500.0,0.0004747,120]
[407968367,1772947847605,-500.0,0.0004747,120]
[407968368,1772947847614,-500.0,0.0004747,120]
[407968369,1772947847625,-500.0,0.0004747,120]
[407968370,1772947847634,-500.0,0.0004747,120]
[407968371,1772947847644,-500.0,0.0004747,120]
[407968372,1772947847655,-500.0,0.0004747,120]
[407968373,1772947847666,-500.0,0.0004747,120]
[407968374,1772947847677,-500.0,0.0004747,120]
[407968375,1772947847689,-500.0,0.0004747,120]
[407968376,1772947847698,-500.0,0.0004747,120]
[407968377,1772947847707,-500.0,0.0004747,120]
[407968378,1772947847716,-500.0,0.0004747,120]
[407968379,1772947847726,-500.0,0.0004747,120]
[407968380,1772947847735,-500.0,0.0004747,120]
[407968381,1772947847744,-500.0,0.0004747,120]
[407968382,1772947847753,-500.0,0.0004747,120]
[407968383,1772947847763,-500.0,0.0004747,120]
[407968384,1772947847773,-500.0,0.0004747,120]
[407968385,1772947847783,-500.0,0.0004747,120]
[407968386,1772947847793,-500.0,0.0004747,120]
[407968387,1772947847804,-500.0,0.0004747,120]
[407968388,1772947847815,-500.0,0.0004747,120]
[407968389,1772947847826,-500.0,0.0004747,120]
[407968390,1772947847836,-500.0,0.0004747,120]
[407968391,1772947847846,-500.0,0.0004747,120]
[407968392,1772947847855,-500.0,0.0004747,120]
[407968393,1772947847865,-500.0,0.0004747,120]
[407968394,1772947847875,-500.0,0.0004747,120]
[407968395,1772947847884,-500.0,0.0004747,120]
[407968396,1772947847894,-500.0,0.0004747,120]
[407968397,1772947847905,-500.0,0.0004747,120]
[407968398,1772947847916,-500.0,0.0004747,120]
[407968399,1772947847926,-500.0,0.0004747,120]
[407968400,1772947847936,-500.0,0.0004747,120]
[407968401,1772947847946,-500.0,0.0004747,120]
[407968402,1772947847961,-500.0,0.0004747,120]
[407968403,1772947847970,-500.0,0.0004747,120]
[407968404,1772947847980,-500.0,0.0004747,120]
[407968405,1772947847992,-500.0,0.0004747,120]
[407968406,1772947848003,-500.0,0.0004747,120]
[407968407,1772947848014,-500.0,0.0004747,120]
[407968408,1772947848025,-500.0,0.0004747,120]
[407968409,1772947848035,-500.0,0.0004747,120]
[407968410,1772947848044,-500.0,0.0004747,120]
[407968411,1772947848054,-500.0,0.0004747,120]
[407968412,1772947848063,-500.0,0.0004747,120]
[407968413,1772947848073,-500.0,0.0004747,120]
[407968414,1772947848083,-500.0,0.0004747,120]
[407968415,1772947848093,-500.0,0.0004747,120]
[407968416,1772947848102,-500.0,0.0004747,120]
[407968417,1772947848112,-500.0,0.0004747,120]
[407968418,1772947848122,-500.0,0.0004747,120]
[407968419,1772947848132,-500.0,0.0004747,120]
[407968420,1772947848142,-500.0,0.0004747,120]
[407968421,1772947848151,-500.0,0.0004747,120]
[407968422,1772947848161,-500.0,0.0004747,120]
[407968423,1772947848171,-500.0,0.0004747,120]
[407968424,1772947848181,-500.0,0.0004747,120]
[407968425,1772947848191,-500.0,0.0004747,120]
[407968426,1772947848201,-500.0,0.0004747,120]
[407968427,1772947848210,-500.0,0.0004747,120]
[407968428,1772947848220,-500.0,0.0004747,120]
[407968429,1772947848230,-500.0,0.0004747,120]